bitfinex-derivatives/quotes_BTCF0:USTF0_20250823
["timestamp","ask_amount","ask_price","bid_price","bid_amount"]
[1755949597414,0.75576439,115540.0,115530.0,0.2024166]
[1755949597415,0.48044,115540.0,115530.0,0.2024166]
[1755949597711,0.48044,115540.0,115530.0,0.58369099]
[1755949597912,0.86171439,115540.0,115530.0,0.31125646]
[1755949598814,0.86171439,115540.0,115530.0,0.2024166]
[1755949599115,0.86371439,115540.0,115530.0,0.2034166]
[1755949599418,0.86371439,115540.0,115530.0,0.2044166]
[1755949599618,0.86671439,115540.0,115530.0,0.2044166]
[1755949599813,0.8754064,115540.0,115530.0,0.2044166]
[1755949600117,0.8754064,115540.0,115530.0,0.58569099]
[1755949606623,0.49413201,115540.0,115530.0,0.2044166]
[1755949606820,0.8754064,115540.0,115530.0,0.58569099]
[1755949609127,0.8754064,115540.0,115530.0,0.69453085]
[1755949609512,0.8754064,115540.0,115530.0,0.31325646]
[1755949609710,0.8754064,115540.0,115530.0,0.69453085]
[1755949610624,0.8754064,115540.0,115530.0,0.31325646]
[1755949613019,0.8754064,115540.0,115530.0,0.24337646]
[1755949613214,0.8754064,115540.0,115530.0,0.1192766]
[1755949614828,0.8754064,115540.0,115530.0,0.1514966]
[1755949615628,0.8754064,115540.0,115530.0,0.1650066]
[1755949615818,0.8754064,115540.0,115530.0,0.1802666]
[1755949616024,0.8754064,115540.0,115530.0,0.28928946]
[1755949616425,0.8754064,115540.0,115530.0,0.27577946]
[1755949616631,0.8754064,115540.0,115530.0,0.1667566]
[1755949617229,0.8754064,115540.0,115530.0,0.28929411]
[1755949617624,0.8754064,115540.0,115530.0,0.27578411]
[1755949618634,0.8754064,115540.0,115530.0,0.29062411]
[1755949619132,0.8754064,115540.0,115530.0,0.27578411]
[1755949621141,0.8754064,115540.0,115530.0,0.29062411]
[1755949621643,0.8754064,115540.0,115530.0,0.27578411]
[1755949624247,0.8754064,115540.0,115530.0,0.1667566]
[1755949626348,0.8754064,115540.0,115530.0,0.1815966]
[1755949626548,0.8754064,115540.0,115530.0,0.2041866]
[1755949626954,0.8754064,115540.0,115530.0,0.1815966]
[1755949627448,0.49413201,115540.0,115530.0,0.1815966]
[1755949627648,0.8754064,115540.0,115530.0,0.1815966]
[1755949629148,0.8754064,115540.0,115530.0,0.1667566]
[1755949629648,0.8754064,115540.0,115530.0,0.1345366]
[1755949630148,0.8754064,115540.0,115530.0,0.1192766]
[1755949630949,0.8754064,115540.0,115530.0,0.1657266]
[1755949631643,0.8754064,115540.0,115530.0,0.1508866]
[1755949631952,0.8754064,115540.0,115530.0,0.1665966]
[1755949632154,0.8754064,115540.0,115530.0,0.1814366]
[1755949632754,0.8754064,115540.0,115530.0,0.56271099]
[1755949634755,0.8754064,115540.0,115530.0,0.58530099]
[1755949636759,0.8754064,115540.0,115530.0,0.2040266]
[1755949636960,0.8754064,115540.0,115530.0,0.58530099]
[1755949638460,0.49413201,115540.0,115530.0,0.58530099]
[1755949638660,0.8754064,115540.0,115530.0,0.58530099]
[1755949639161,0.49413201,115540.0,115530.0,0.58530099]
[1755949639358,0.8754064,115540.0,115530.0,0.58530099]
[1755949639761,0.8754064,115540.0,115530.0,0.2040266]
[1755949639962,0.8754064,115540.0,115530.0,0.58530099]
[1755949640161,0.8754064,115540.0,115530.0,0.2040266]
[1755949640362,0.8754064,115540.0,115530.0,0.1814366]
[1755949640860,0.8754064,115540.0,115530.0,0.1665966]
[1755949641361,0.8754064,115540.0,115530.0,0.1814366]
[1755949642261,0.8754064,115540.0,115530.0,0.1665966]
[1755949650869,0.8754064,115540.0,115530.0,0.1192766]
[1755949651067,0.8754064,115540.0,115530.0,0.1099166]
[1755949651769,0.8754064,115540.0,115530.0,0.1196766]
[1755949653372,0.8754064,115540.0,115530.0,0.1531666]
[1755949660976,0.9619878,115540.0,115530.0,0.1531666]
[1755949663072,0.9619878,115540.0,115530.0,0.1196766]
[1755949663278,0.9619878,115540.0,115530.0,0.1196789]
[1755949664370,0.58071341,115540.0,115530.0,0.1196789]
[1755949664571,0.9619878,115540.0,115530.0,0.1196789]
[1755949666378,0.9619878,115540.0,115530.0,0.2288112]
[1755949673984,0.9619878,115540.0,115530.0,0.1196789]
[1755949674286,0.9619878,115540.0,115530.0,0.1531689]
[1755949677486,0.9619878,115540.0,115530.0,0.26229566]
[1755949681678,0.9619878,115540.0,115530.0,0.1531689]
[1755949683687,0.9619878,115540.0,115530.0,0.1196789]
[1755949683987,0.98174255,115540.0,115530.0,0.002]
[1755949684292,0.98174255,115540.0,115520.0,0.0865959]
[1755949684293,0.2071086,115530.0,115520.0,0.0865959]
[1755949684587,1.73814299,115530.0,115520.0,0.0865959]
[1755949685290,1.73814299,115530.0,115520.0,0.19572266]
[1755949685785,1.74114299,115530.0,115520.0,0.21967266]
[1755949685986,1.3598686,115530.0,115520.0,0.21967266]
[1755949686192,1.74114299,115530.0,115520.0,0.26173266]
[1755949689994,1.3598686,115530.0,115520.0,0.26173266]
[1755949690293,1.74114299,115530.0,115520.0,0.26173266]
[1755949692190,1.74114299,115530.0,115520.0,0.11112676]
[1755949695000,1.74114299,115530.0,115520.0,0.19772286]
[1755949697202,1.74114299,115530.0,115520.0,0.0885961]
[1755949698709,1.38034299,115530.0,115520.0,0.002]
[1755949698915,2.10194299,115530.0,115520.0,0.002]
[1755949699302,1.7206686,115530.0,115520.0,0.0885961]
[1755949699504,2.10194299,115530.0,115520.0,0.0885961]
[1755949699910,2.10194299,115530.0,115520.0,0.002]
[1755949718832,1.38034299,115530.0,115520.0,0.002]
[1755949719033,2.10194299,115530.0,115520.0,0.002]
[1755949725728,2.10194299,115530.0,115520.0,0.11112676]
[1755949727836,2.10194299,115530.0,115520.0,0.19772286]
[1755949730437,1.38034299,115530.0,115520.0,0.19772286]
[1755949730737,2.10194299,115530.0,115520.0,0.19772286]
[1755949731040,2.10194299,115530.0,115520.0,0.0885961]
[1755949736432,2.10194299,115530.0,115520.0,0.002]
[1755949742848,2.35194299,115530.0,115520.0,0.002]
[1755949748353,1.9706686,115530.0,115520.0,0.002]
[1755949748654,2.35194299,115530.0,115520.0,0.002]
[1755949749955,1.9706686,115530.0,115520.0,0.002]
[1755949750151,2.35194299,115530.0,115520.0,0.002]
[1755949753158,1.9706686,115530.0,115520.0,0.002]
[1755949753357,2.35194299,115530.0,115520.0,0.002]
[1755949757661,2.10194299,115530.0,115520.0,0.002]
[1755949766369,2.10194299,115530.0,115520.0,0.1517561]
[1755949766571,2.10194299,115530.0,115520.0,0.1855461]
[1755949768874,2.10194299,115530.0,115520.0,0.09895]
[1755949769086,2.10194299,115530.0,115520.0,0.08493]
[1755949769376,2.10194299,115530.0,115520.0,0.06879]
[1755949771878,2.10194299,115530.0,115520.0,0.035]
[1755949777188,2.10194299,115530.0,115520.0,0.1215961]
[1755949778188,2.10194299,115530.0,115520.0,0.002]
[1755949778988,2.10194299,115530.0,115520.0,0.07993591]
[1755949779692,2.10194299,115530.0,115520.0,0.16653201]
[1755949781588,2.10194299,115530.0,115520.0,0.07993591]
[1755949782090,2.10194299,115530.0,115520.0,0.17668514]
[1755949786092,1.7206686,115530.0,115520.0,0.17668514]
[1755949786394,2.10194299,115530.0,115520.0,0.17668514]
[1755949790796,2.10194299,115530.0,115520.0,0.16653201]
[1755949790999,2.10194299,115530.0,115520.0,0.17668514]
[1755949792003,1.7206686,115530.0,115520.0,0.17668514]
[1755949792197,2.10194299,115530.0,115520.0,0.17668514]
[1755949799102,2.10194299,115530.0,115520.0,0.16653201]
[1755949799402,2.10194299,115530.0,115520.0,0.17668514]
[1755949801810,2.10194299,115530.0,115520.0,0.09874923]
[1755949803510,0.8991286,115530.0,115520.0,0.43429923]
[1755949803711,1.7203086,115530.0,115520.0,0.46719923]
[1755949803912,2.10158299,115530.0,115520.0,0.46719923]
[1755949805612,2.12095801,115530.0,115520.0,0.46719923]
[1755949806718,2.12095801,115530.0,115520.0,0.46719886]
[1755949807615,2.12095801,115530.0,115520.0,0.4570461]
[1755949807813,2.12095801,115530.0,115520.0,0.46719886]
[1755949808812,2.12095801,115530.0,115520.0,0.54516522]
[1755949811015,2.12095801,115530.0,115520.0,0.53501246]
[1755949811208,2.12095801,115530.0,115520.0,0.46719886]
[1755949813715,2.12095801,115530.0,115520.0,0.57632562]
[1755949814116,2.12095801,115530.0,115520.0,0.46719886]
[1755949815015,2.12095801,115530.0,115520.0,0.57632562]
[1755949815814,2.12095801,115530.0,115520.0,0.55210562]
[1755949816315,2.12095801,115530.0,115520.0,0.48809562]
[1755949817118,2.12095801,115530.0,115520.0,0.48809555]
[1755949817412,2.12095801,115530.0,115520.0,0.45787555]
[1755949817614,2.12095801,115530.0,115520.0,0.37127945]
[1755949818218,2.12095801,115530.0,115520.0,0.34874839]
[1755949819417,2.12095801,115530.0,115520.0,0.26215269]
[1755949820020,2.12095801,115530.0,115520.0,0.34874839]
[1755949820218,2.12095801,115530.0,115520.0,0.45787515]
[1755949821319,2.12095801,115530.0,115520.0,0.34874839]
[1755949821521,2.12095801,115530.0,115520.0,0.42667507]
[1755949821720,2.12095801,115530.0,115520.0,0.34874839]
[1755949824426,2.12095801,115530.0,115520.0,0.09874839]
[1755949825225,2.12095801,115530.0,115520.0,0.01215269]
[1755949826128,2.12095801,115530.0,115520.0,0.09874839]
[1755949826313,2.12095801,115530.0,115520.0,0.0885957]
[1755949826514,2.12095801,115530.0,115520.0,0.09874839]
[1755949826925,2.12095801,115530.0,115520.0,0.0987484]
[1755949828026,2.12095801,115530.0,115520.0,0.0121527]
[1755949829828,2.12095801,115530.0,115520.0,0.0987484]
[1755949830124,2.12095801,115530.0,115520.0,0.17668884]
[1755949831023,2.12095801,115530.0,115520.0,0.0987484]
[1755949831528,1.73968362,115530.0,115520.0,0.0987484]
[1755949831826,2.12095801,115530.0,115520.0,0.0987484]
[1755949832022,2.12095801,115530.0,115520.0,0.20787516]
[1755949834327,1.73968362,115530.0,115520.0,0.20787516]
[1755949834530,2.12095801,115530.0,115520.0,0.20787516]
[1755949835235,1.73968362,115530.0,115520.0,0.0987484]
[1755949835423,2.12095801,115530.0,115520.0,0.0885957]
[1755949835729,2.12095801,115530.0,115520.0,0.1291084]
[1755949836631,2.12095801,115530.0,115520.0,0.1620384]
[1755949838932,2.12095801,115530.0,115520.0,0.1291084]
[1755949839133,2.12095801,115530.0,115520.0,0.0425127]
[1755949840832,2.12095801,115530.0,115520.0,0.15163946]
[1755949842129,1.73968362,115530.0,115520.0,0.15163946]
[1755949842338,2.12095801,115530.0,115520.0,0.15163946]
[1755949843126,2.12095801,115530.0,115520.0,0.12127946]
[1755949845034,2.12095801,115530.0,115520.0,0.11112676]
[1755949845235,2.12095801,115530.0,115520.0,0.12127946]
[1755949849539,2.12095801,115530.0,115520.0,0.0121527]
[1755949850434,2.12095801,115530.0,115520.0,0.12127946]
[1755949854041,2.12095801,115530.0,115520.0,0.0121527]
[1755949862750,2.12095801,115530.0,115520.0,0.002]
[1755949862950,2.12095801,115530.0,115520.0,0.0121527]
[1755949872264,2.12095801,115530.0,115520.0,0.01215271]
[1755949872659,2.12095801,115530.0,115520.0,0.002]
[1755949872865,2.12095801,115530.0,115520.0,0.01215271]
[1755949878269,1.73968362,115530.0,115520.0,0.01215271]
[1755949878470,2.12095801,115530.0,115520.0,0.01215271]
[1755949878669,2.12095801,115530.0,115520.0,0.12127947]
[1755949879068,2.12095801,115530.0,115520.0,0.01215271]
[1755949881660,2.12095801,115530.0,115520.0,0.002]
[1755949881865,2.12095801,115530.0,115520.0,0.01215271]
[1755949895879,2.12095801,115530.0,115520.0,0.12127947]
[1755949897376,2.12095801,115530.0,115520.0,0.12127948]
[1755949897968,2.12095801,115530.0,115520.0,0.01215272]
[1755949900577,2.12095801,115530.0,115520.0,0.01215294]
[1755949907587,1.73968362,115530.0,115520.0,0.01215294]
[1755949907788,2.12095801,115530.0,115520.0,0.01215294]
[1755949909989,2.12095801,115530.0,115520.0,0.01215307]
[1755949910185,0.2048122,115520.0,115510.0,0.09597389]
[1755949910487,0.22378215,115510.0,115500.0,0.1]
[1755949910679,1.75393654,115510.0,115500.0,0.1]
[1755949911080,1.37266215,115510.0,115500.0,0.1]
[1755949911289,1.75393654,115510.0,115500.0,0.1]
[1755949912482,1.75293654,115510.0,115500.0,0.1]
[1755949913389,1.75193654,115510.0,115500.0,0.1]
[1755949913585,1.75293654,115510.0,115500.0,0.101]
[1755949913985,1.75393654,115510.0,115500.0,0.17986961]
[1755949915297,1.82250181,115510.0,115500.0,0.17986961]
[1755949915887,1.44122742,115510.0,115500.0,0.17986961]
[1755949916193,1.82250181,115510.0,115500.0,0.17986961]
[1755949919093,1.82250181,115510.0,115500.0,0.102]
[1755949919995,1.82250181,115510.0,115500.0,0.13296]
[1755949920197,1.82250181,115510.0,115500.0,0.18194]
[1755949920600,1.82250181,115510.0,115500.0,0.16732]
[1755949922099,1.82250181,115510.0,115500.0,0.13296]
[1755949922601,1.82250181,115510.0,115500.0,0.16732]
[1755949922901,1.82250181,115510.0,115500.0,0.13296]
[1755949927305,1.82250181,115510.0,115500.0,0.16732]
[1755949928108,1.82250181,115510.0,115500.0,0.13296]
[1755949931114,1.82250181,115510.0,115500.0,0.21082961]
[1755949934214,1.03442181,115510.0,115500.0,0.21082961]
[1755949934415,1.82258181,115510.0,115500.0,0.21082961]
[1755949937315,2.18338181,115510.0,115500.0,0.21082961]
[1755949937916,2.16756996,115510.0,115500.0,0.8661118]
[1755949938214,2.16756996,115510.0,115500.0,0.78824219]
[1755949938417,2.16756996,115510.0,115500.0,0.51592252]
[1755949940018,2.16752996,115510.0,115500.0,0.51592252]
[1755949942718,2.16752996,115510.0,115500.0,0.41592252]
[1755949944119,2.16752996,115510.0,115500.0,0.3069678]
[1755949944418,2.16752996,115510.0,115500.0,0.38491816]
[1755949945316,2.16752996,115510.0,115500.0,0.3069678]
[1755949949221,1.78625557,115510.0,115500.0,0.3069678]
[1755949949523,2.16752996,115510.0,115500.0,0.3069678]
[1755949950721,2.41832996,115510.0,115500.0,0.002]
[1755949951210,0.0866078,115500.0,115490.0,0.07795036]
[1755949951409,0.0866078,115500.0,115480.0,0.20895472]
[1755949951410,0.2081853,115490.0,115480.0,0.20895472]
[1755949951615,2.11981408,115490.0,115480.0,0.28690996]
[1755949951810,2.11981408,115490.0,115480.0,0.10895472]
[1755949952016,2.11981408,115490.0,115480.0,0.18691289]
[1755949952216,0.1348728,115480.0,115470.0,0.10895472]
[1755949952422,1.32200158,115480.0,115470.0,0.20895472]
[1755949952624,0.94072719,115480.0,115470.0,0.20895472]
[1755949952922,0.93772719,115480.0,115470.0,0.20895472]
[1755949953118,1.56980158,115480.0,115470.0,0.20895472]
[1755949953322,0.0866379,115460.0,115450.0,0.1100445]
[1755949953523,1.61691229,115460.0,115450.0,0.2749945]
[1755949953822,1.61591229,115460.0,115450.0,0.2749945]
[1755949954024,1.61591229,115460.0,115450.0,0.18835]
[1755949954232,1.2346379,115460.0,115450.0,0.15634]
[1755949954420,1.61591229,115460.0,115450.0,0.15634]
[1755949954919,0.78816,115460.0,115450.0,0.64947969]
[1755949955122,0.78916,115460.0,115450.0,1.36107969]
[1755949955421,0.78916,115460.0,115450.0,1.39946969]
[1755949955624,0.79116,115460.0,115450.0,1.39966969]
[1755949955924,0.79116,115460.0,115450.0,1.40046969]
[1755949956316,0.79116,115460.0,115450.0,1.0191953]
[1755949960131,0.79116,115460.0,115450.0,1.0183953]
[1755949961723,1.62078069,115460.0,115450.0,0.1244]
[1755949961923,1.62078069,115460.0,115450.0,0.2110454]
[1755949962122,1.62078069,115460.0,115450.0,0.2209654]
[1755949962425,1.2385979,115460.0,115450.0,0.2439854]
[1755949962725,1.2385979,115460.0,115450.0,0.2759954]
[1755949963225,1.2385979,115460.0,115450.0,0.18935]
[1755949963424,1.2385979,115460.0,115450.0,0.20434]
[1755949963624,1.2385979,115460.0,115450.0,0.22095]
[1755949966625,1.87078069,115460.0,115450.0,0.101]
[1755949967222,1.87158069,115460.0,115450.0,0.101]
[1755949967927,1.87158069,115460.0,115450.0,0.1244]
[1755949972028,1.87078069,115460.0,115450.0,0.1244]
[1755949978936,1.62078069,115460.0,115450.0,0.1244]
[1755949980636,1.62078069,115460.0,115450.0,0.2110453]
[1755949980936,1.2388379,115460.0,115450.0,0.3057153]
[1755949985536,1.62102069,115460.0,115450.0,0.3057153]
[1755949985733,0.003,115460.0,115450.0,1.39949809]
[1755949985939,0.7914,115460.0,115450.0,1.39949809]
[1755949986239,0.7914,115460.0,115450.0,1.5173153]
[1755949986738,0.7914,115460.0,115450.0,1.5165153]
[1755949986938,0.8780378,115460.0,115450.0,1.4165153]
[1755949987640,0.8780378,115460.0,115450.0,0.9165153]
[1755949989743,0.7914,115460.0,115450.0,0.9165153]
[1755949991348,0.7914,115460.0,115450.0,0.5557153]
[1755949992140,0.8780379,115460.0,115450.0,0.5557153]
[1755949997145,0.8780379,115460.0,115450.0,0.6644718]
[1755949998246,1.62102069,115460.0,115450.0,0.2944765]
[1755949998445,1.2388379,115460.0,115450.0,0.18572]
[1755949999047,1.2388379,115460.0,115450.0,0.21907]
[1755949999246,1.62102069,115460.0,115450.0,0.21907]
[1755949999651,1.2388379,115460.0,115450.0,0.2642865]
[1755950002551,1.62102069,115460.0,115450.0,0.2642865]
[1755950002753,1.2388379,115460.0,115450.0,0.2642865]
[1755950003753,1.2388379,115460.0,115450.0,0.2423365]
[1755950003955,1.62102069,115460.0,115450.0,0.13358]
[1755950004250,1.62102069,115460.0,115450.0,0.1244]
[1755950016254,1.62102069,115460.0,115450.0,0.15491]
[1755950018062,1.62102069,115460.0,115450.0,0.13391]
[1755950018657,1.62102069,115460.0,115450.0,0.1244]
[1755950022163,1.2388379,115460.0,115450.0,0.1244]
[1755950022464,1.62102069,115460.0,115450.0,0.13391]
[1755950023967,1.62102069,115460.0,115450.0,0.15491]
[1755950026161,1.62102069,115460.0,115450.0,0.18985]
[1755950026368,1.62109723,115460.0,115450.0,0.22008]
[1755950026963,1.2387579,115460.0,115450.0,0.22008]
[1755950027153,1.62109723,115460.0,115450.0,0.22008]
[1755950027666,1.62109723,115460.0,115450.0,0.20597]
[1755950027964,1.62109723,115460.0,115450.0,0.17103]
[1755950029866,1.62109723,115460.0,115450.0,0.15491]
[1755950030066,1.62109723,115460.0,115450.0,0.1244]
[1755950030466,1.62109723,115460.0,115450.0,0.13391]
[1755950033665,1.62109723,115460.0,115450.0,0.15491]
[1755950033864,1.62109723,115460.0,115450.0,0.2636665]
[1755950035861,1.62109723,115460.0,115450.0,0.2331565]
[1755950036057,1.62109723,115460.0,115450.0,0.0244]
[1755950038566,1.62189723,115460.0,115450.0,0.001]
[1755950039165,1.87189723,115460.0,115450.0,0.001]
[1755950039366,1.87109723,115460.0,115450.0,0.001]
[1755950039768,0.0866456,115450.0,115440.0,0.03341]
[1755950039962,0.0866456,115450.0,115440.0,0.05591]
[1755950039963,0.82878493,115450.0,115440.0,0.05591]
[1755950040164,0.82878493,115450.0,115440.0,0.10422]
[1755950040567,0.82878493,115450.0,115440.0,0.12007]
[1755950040967,0.0866559,115440.0,115430.0,0.02401]
[1755950041167,2.00041456,115440.0,115430.0,0.12401]
[1755950041459,2.00041456,115440.0,115430.0,0.17176]
[1755950041665,2.00041456,115440.0,115430.0,0.22007]
[1755950042066,1.61807523,115440.0,115430.0,0.22007]
[1755950042266,1.61607523,115440.0,115430.0,0.22007]
[1755950042469,1.99941456,115440.0,115430.0,0.22107]
[1755950042670,1.21113456,115440.0,115430.0,0.13441]
[1755950042866,1.99941456,115440.0,115430.0,0.15691]
[1755950043080,1.21213456,115440.0,115430.0,0.12801]
[1755950043264,2.25041456,115440.0,115430.0,0.12701]
[1755950043466,1.46113456,115440.0,115430.0,0.02701]
[1755950043669,0.0846681,115420.0,115410.0,0.1730657]
[1755950043870,1.61608743,115420.0,115410.0,0.3067457]
[1755950044373,1.14908,115430.0,115420.0,0.1344182]
[1755950044674,1.14908,115430.0,115420.0,0.58907753]
[1755950044878,1.61808003,115430.0,115420.0,0.4575382]
[1755950045079,1.66675003,115430.0,115420.0,0.7067382]
[1755950045462,1.69071003,115430.0,115420.0,0.62007]
[1755950046270,1.6919204,115430.0,115420.0,0.62007]
[1755950046673,1.6919204,115430.0,115420.0,0.12007]
[1755950046872,1.6939204,115430.0,115420.0,0.12107]
[1755950047976,1.3113707,115430.0,115420.0,0.12107]
[1755950048279,1.6939204,115430.0,115420.0,0.12107]
[1755950050981,1.6939204,115430.0,115420.0,0.001]
[1755950051481,1.6939204,115430.0,115420.0,0.02501]
[1755950051678,1.6939204,115430.0,115420.0,0.03441]
[1755950052175,1.6939204,115430.0,115420.0,0.12107]
[1755950052382,1.6939204,115430.0,115420.0,0.07276]
[1755950054373,1.6939204,115430.0,115420.0,0.10644]
[1755950054569,1.6939204,115430.0,115420.0,0.12107]
[1755950057481,1.6939204,115430.0,115420.0,0.10644]
[1755950058282,1.6939204,115430.0,115420.0,0.07276]
[1755950059585,1.6939204,115430.0,115420.0,0.05691]
[1755950060587,1.6939204,115430.0,115420.0,0.03441]
[1755950061681,1.6939204,115430.0,115420.0,0.001]
[1755950063882,1.7426804,115430.0,115420.0,0.001]
[1755950064788,0.2075782,115420.0,115410.0,0.0737565]
[1755950064984,0.9509279,115420.0,115410.0,0.0727565]
[1755950065291,0.1511532,115400.0,115390.0,0.3139378]
[1755950065478,0.9400732,115400.0,115390.0,0.3139378]
[1755950065678,0.9400733,115400.0,115390.0,0.3139378]
[1755950067088,0.94896256,115400.0,115390.0,0.3139378]
[1755950067889,0.95396256,115400.0,115390.0,0.3139378]
[1755950068080,0.97354404,115400.0,115390.0,0.14059]
[1755950068287,1.71689374,115400.0,115390.0,0.1616]
[1755950068679,1.71789374,115400.0,115390.0,0.1616]
[1755950069284,1.71789374,115400.0,115390.0,0.10718]
[1755950069586,0.0867034,115380.0,115370.0,0.2043055]
[1755950069893,1.2554901,115380.0,115370.0,0.1176]
[1755950070277,1.2554901,115380.0,115370.0,0.2043057]
[1755950070486,1.6380398,115380.0,115370.0,0.2043057]
[1755950070789,1.6380398,115380.0,115370.0,0.1176]
[1755950071489,1.2554901,115380.0,115370.0,0.2043053]
[1755950071689,0.3800667,115380.0,115370.0,0.4543053]
[1755950071886,0.003,115380.0,115370.0,0.5543053]
[1755950072191,0.79676,115380.0,115370.0,0.9151053]
[1755950072889,0.79676,115380.0,115370.0,1.4151053]
[1755950074392,0.8834578,115380.0,115370.0,1.4151053]
[1755950074587,1.2442578,115380.0,115370.0,0.9676]
[1755950075095,1.2442578,115380.0,115370.0,0.8043053]
[1755950075396,1.2442578,115380.0,115370.0,0.2176]
[1755950075594,1.2442578,115380.0,115370.0,0.2398953]
[1755950075783,1.26383911,115380.0,115370.0,0.3043053]
[1755950076191,0.90303911,115380.0,115370.0,0.3043053]
[1755950076499,1.26383911,115380.0,115370.0,0.3043053]
[1755950077085,1.2442578,115380.0,115370.0,0.3043053]
[1755950082589,1.2451778,115380.0,115370.0,0.3043053]
[1755950083996,1.2451778,115380.0,115370.0,0.2043053]
[1755950084698,1.2451778,115380.0,115370.0,0.3043053]
[1755950084998,1.2449378,115380.0,115370.0,0.3043053]
[1755950085990,1.2449378,115380.0,115370.0,0.2557153]
[1755950086490,1.2449378,115380.0,115370.0,0.3043054]
[1755950087190,1.6274875,115380.0,115370.0,0.3043054]
[1755950087792,1.6274875,115380.0,115370.0,0.2043054]
[1755950089497,1.2449378,115380.0,115370.0,0.2043054]
[1755950089796,1.2449379,115380.0,115370.0,0.2043054]
[1755950091301,1.2449379,115380.0,115370.0,0.7043054]
[1755950101205,1.2438179,115380.0,115370.0,0.81318518]
[1755950104008,1.2438179,115380.0,115370.0,0.7043054]
[1755950104800,1.64536969,115380.0,115370.0,0.7043054]
[1755950105002,1.64536969,115380.0,115370.0,0.6176]
[1755950105196,1.64236969,115380.0,115370.0,0.72647978]
[1755950105396,0.89801999,115380.0,115370.0,0.81318518]
[1755950105595,0.89801999,115380.0,115370.0,0.7043054]
[1755950106798,0.89801999,115380.0,115370.0,0.69211978]
[1755950106998,1.28056969,115380.0,115370.0,0.69211978]
[1755950107203,0.89801999,115380.0,115370.0,0.61493]
[1755950107598,0.89801999,115380.0,115370.0,0.56901]
[1755950107805,0.89801999,115380.0,115370.0,0.05319]
[1755950108801,0.89801999,115380.0,115360.0,0.14320978]
[1755950108802,0.0867055,115370.0,115360.0,0.14320978]
[1755950109107,0.4692552,115370.0,115360.0,0.14320978]
[1755950109300,0.4692552,115370.0,115360.0,0.64320978]
[1755950109505,0.4692552,115370.0,115360.0,0.72702978]
[1755950110006,0.4712552,115370.0,115360.0,0.62415]
[1755950110194,0.4712552,115370.0,115360.0,0.72415]
[1755950112113,1.0828552,115370.0,115360.0,0.506]
[1755950113105,1.0828552,115370.0,115360.0,0.006]
[1755950113607,1.0818552,115370.0,115360.0,0.002]
[1755950113806,1.0838552,115370.0,115360.0,0.002]
[1755950114604,1.0830552,115370.0,115360.0,0.002]
[1755950114803,0.7005055,115370.0,115360.0,0.002]
[1755950115009,1.0830552,115370.0,115360.0,0.002]
[1755950115615,0.7005055,115370.0,115360.0,0.002]
[1755950115807,1.0830552,115370.0,115360.0,0.02667]
[1755950118304,1.0810552,115370.0,115360.0,0.02567]
[1755950118514,1.0830552,115370.0,115360.0,0.02567]
[1755950119014,0.7005055,115370.0,115360.0,0.02567]
[1755950119211,1.0830552,115370.0,115360.0,0.02567]
[1755950119709,1.0820552,115370.0,115360.0,0.02467]
[1755950119915,1.0830552,115370.0,115360.0,0.02467]
[1755950123022,0.7005055,115370.0,115360.0,0.02467]
[1755950123723,1.0830552,115370.0,115360.0,0.02467]
[1755950124021,0.7005055,115370.0,115360.0,0.02467]
[1755950124317,1.0830552,115370.0,115360.0,0.02467]
[1755950128922,0.7005055,115370.0,115360.0,0.02467]
[1755950129223,1.0830552,115370.0,115360.0,0.03441]
[1755950129913,0.8330552,115370.0,115360.0,0.02467]
[1755950136924,0.8330552,115370.0,115360.0,0.03441]
[1755950137533,0.8330552,115370.0,115360.0,0.05683]
[1755950137925,0.8330552,115370.0,115360.0,0.03441]
[1755950139831,1.6320152,115370.0,115360.0,0.11968]
[1755950141534,1.6320152,115370.0,115360.0,0.08787]
[1755950141732,1.2494655,115370.0,115360.0,0.11968]
[1755950141934,1.6320152,115370.0,115360.0,0.11968]
[1755950149453,1.6320152,115370.0,115360.0,0.03441]
[1755950149642,1.6320152,115370.0,115360.0,0.02467]
[1755950152154,1.6320152,115370.0,115360.0,0.03441]
[1755950154356,1.63244694,115370.0,115360.0,0.03441]
[1755950155558,1.63244694,115370.0,115360.0,0.02467]
[1755950155750,0.0867128,115360.0,115350.0,0.13179978]
[1755950155949,1.21347568,115360.0,115350.0,0.13179978]
[1755950156145,1.21347568,115360.0,115350.0,0.14153978]
[1755950156350,0.83053424,115360.0,115350.0,0.16395978]
[1755950156551,0.83053424,115360.0,115350.0,0.22680978]
[1755950157060,0.83153424,115360.0,115350.0,0.22680978]
[1755950157747,0.83253424,115360.0,115350.0,0.22680978]
[1755950158655,0.83253424,115360.0,115350.0,0.19499978]
[1755950158957,0.83253424,115360.0,115350.0,0.18050978]
[1755950159351,0.83253424,115360.0,115350.0,0.13179978]
[1755950160761,0.83153424,115360.0,115350.0,0.13179978]
[1755950161062,0.83353424,115360.0,115350.0,0.13179978]
[1755950163153,0.83353424,115360.0,115350.0,0.02292]
[1755950165758,0.83353424,115360.0,115350.0,0.0323]
[1755950167250,0.83353424,115360.0,115350.0,0.02292]
[1755950168865,0.85248102,115360.0,115350.0,0.02292]
[1755950169359,0.46945958,115360.0,115350.0,0.02292]
[1755950169763,0.85248102,115360.0,115350.0,0.02292]
[1755950171864,0.85248102,115360.0,115350.0,0.05514]
[1755950173564,0.85248102,115360.0,115350.0,0.08914]
[1755950175165,0.85248102,115360.0,115350.0,0.19801978]
[1755950175664,0.85248102,115360.0,115350.0,0.21249978]
[1755950176268,0.46945958,115360.0,115350.0,0.21249978]
[1755950176453,0.46945958,115360.0,115350.0,0.10362]
[1755950176769,0.85248102,115360.0,115350.0,0.11877]
[1755950178268,1.2355097,115360.0,115350.0,0.11877]
[1755950179365,1.2355097,115360.0,115350.0,0.22764978]
[1755950186468,1.2355097,115360.0,115350.0,0.02292]
[1755950186769,0.0867278,115340.0,115330.0,0.65232874]
[1755950186969,1.26643286,115340.0,115330.0,0.75232874]
[1755950187169,1.26643286,115340.0,115330.0,0.77626874]
[1755950187771,1.26643286,115340.0,115330.0,0.66738896]
[1755950188171,1.26843286,115340.0,115330.0,0.66738896]
[1755950188368,1.26943286,115340.0,115330.0,0.66738896]
[1755950189861,1.27804961,115340.0,115330.0,0.66738896]
[1755950190269,1.27804961,115340.0,115330.0,0.30658896]
[1755950191877,0.89502455,115340.0,115330.0,0.30658896]
[1755950192063,1.27804961,115340.0,115330.0,0.30658896]
[1755950192473,1.27804961,115340.0,115330.0,0.41546874]
[1755950195775,1.27804961,115340.0,115330.0,0.30658896]
[1755950198081,0.89502455,115340.0,115330.0,0.30658896]
[1755950198280,1.27804961,115340.0,115330.0,0.30658896]
[1755950200583,0.89502455,115340.0,115330.0,0.30658896]
[1755950200782,1.27804961,115340.0,115330.0,0.30658896]
[1755950202191,1.27804961,115340.0,115330.0,0.4158206]